bitfinex-derivatives/quotes_ETHF0:USTF0_20210111
["timestamp","ask_amount","ask_price","bid_price","bid_amount"]
[1610345868472,3.8462,1077.1,1075.5,3.45421879]
[1610345868473,2.0893,1075.7,1075.5,3.45421879]
[1610345868872,4.00959,1075.6,1075.5,3.45421879]
[1610345869072,2.0893,1075.7,1075.5,3.45421879]
[1610345869471,2.0112,1077.1,1075.5,3.45421879]
[1610345870672,2.0112,1077.1,1075.5,5.30081879]
[1610345870872,4.00959,1076.0,1075.8,4.00959]
[1610345871072,1.9477,1076.1,1075.8,4.00959]
[1610345872276,1.9477,1076.1,1075.9,1.85792893]
[1610345872876,4.00959,1076.0,1075.9,1.85792893]
[1610345873575,4.00959,1076.0,1075.6,1.8592373]
[1610345874176,4.00959,1076.0,1075.6,3.6957373]
[1610345874574,4.00959,1076.0,1075.6,1.8592373]
[1610345874777,4.00959,1075.7,1075.6,1.8592373]
[1610345874976,4.00959,1075.7,1075.5,1.5952]
[1610345875175,6.13229,1075.7,1075.0,2.86371013]
[1610345875376,1.9477,1076.1,1075.0,2.86371013]
[1610345876178,2.0112,1077.1,1075.0,2.86371013]
[1610345876379,2.0112,1077.1,1075.0,4.37231013]
[1610345876578,1.8568,1079.2,1075.1,1.85839448]
[1610345876778,4.00959,1077.4,1077.3,4.00959]
[1610345876979,4.00959,1077.4,1075.5,1.8812]
[1610345877181,5.87829,1077.4,1075.5,1.8812]
[1610345878380,5.87829,1077.4,1075.6,1.85799166]
[1610345878580,1.8815,1079.8,1075.6,3.47639166]
[1610345878783,4.00959,1077.5,1076.9,4.00959]
[1610345878981,1.8776,1080.0,1076.9,4.00959]
[1610345879382,1.8301,1080.0,1076.9,4.00959]
[1610345879682,1.8771,1081.3,1076.9,4.00959]
[1610345879882,1.8771,1081.3,1077.0,1.85702748]
[1610345880883,4.00959,1077.8,1077.7,4.00959]
[1610345881083,1.8664,1078.9,1077.7,4.00959]
[1610345882284,58.6799,1080.0,1077.7,4.00959]
[1610345882483,58.6799,1080.0,1077.6,2.2794]
[1610345882684,58.6799,1080.0,1077.8,1.85652487]
[1610345882887,4.00959,1077.9,1077.8,1.85652487]
[1610345884085,4.00959,1077.9,1077.0,1.85729468]
[1610345884887,4.00959,1077.1,1077.0,1.85729468]
[1610345886888,4.00959,1077.1,1075.8,2.21496153]
[1610345887990,5.84349,1077.1,1075.8,2.21496153]
[1610345888388,12.80069,1077.1,1075.1,53.2169]
[1610345888788,4.00959,1075.2,1075.1,53.2169]
[1610345889388,1.9289,1076.0,1075.1,53.2169]
[1610345889587,1.9289,1076.0,1075.1,55.24294402]
[1610345889788,8.7911,1077.1,1075.1,55.24294402]
[1610345890592,1.8286,1079.0,1075.1,2.02604402]
[1610345890989,1.8724,1080.3,1077.4,4.00959]
[1610345891189,1.8724,1080.3,1076.8,2.0513]
[1610345891390,5.2774,1080.3,1076.8,2.0513]
[1610345891591,57.9886,1079.7,1076.8,2.0513]
[1610345891792,59.7753,1079.7,1076.8,2.0513]
[1610345891992,61.6448,1079.7,1076.8,2.0513]
[1610345892393,61.6448,1079.7,1076.9,2.02412498]
[1610345892995,4.00959,1077.0,1076.9,2.02412498]
[1610345893597,1.5971,1077.3,1076.9,2.02412498]
[1610345893797,1.5971,1077.3,1076.4,2.02425608]
[1610345894796,1.8549,1079.2,1076.4,2.02425608]
[1610345894997,61.6448,1079.7,1076.4,2.02425608]
[1610345895397,61.6448,1079.7,1076.4,4.24375608]
[1610345896599,59.7753,1079.7,1076.5,2.02224501]
[1610345896799,59.7753,1079.7,1076.5,3.87884501]
[1610345896999,4.00959,1078.1,1078.0,4.00959]
[1610345897200,1.976,1078.5,1078.0,4.00959]
[1610345897800,59.7753,1079.7,1078.0,4.00959]
[1610345897999,59.7753,1079.7,1077.8,2.105]
[1610345898200,59.7753,1079.7,1078.1,2.0212095]
[1610345899000,4.00959,1078.2,1078.1,2.0212095]
[1610345899601,4.00959,1078.2,1077.9,2.02149333]
[1610345901002,4.00959,1078.0,1077.0,4.00959]
[1610345901201,2.4014,1078.0,1077.0,4.00959]
[1610345902003,9e-05,1078.3,1077.0,4.00959]
[1610345902502,2.4164,1079.0,1077.1,2.02174273]
[1610345902902,4.00959,1078.6,1077.9,4.00959]
[1610345904704,4.00959,1078.6,1077.0,1.6152]
[1610345904905,4.00959,1078.0,1077.5,4.00959]
[1610345905306,4.00959,1078.0,1077.0,1.6152]
[1610345905506,4.00959,1078.0,1076.7,76.8969]
[1610345906706,4.00959,1078.0,1076.0,2.0672]
[1610345906906,1.9983,1078.1,1075.4,76.9618]
[1610345906907,4.00959,1076.1,1075.4,76.9618]
[1610345907907,4.00959,1076.1,1075.5,2.02391363]
[1610345908908,4.00959,1075.6,1075.5,2.02391363]
[1610345909108,6.48289,1075.6,1075.5,2.02391363]
[1610345909308,6.48289,1075.6,1075.4,76.9618]
[1610345910508,6.48289,1075.6,1074.0,4.00959]
[1610345910908,4.00959,1074.1,1073.8,4.00959]
[1610345911310,4.00959,1074.1,1073.0,2.29514121]
[1610345911910,2.0166,1074.4,1072.8,2.29560377]
[1610345912110,2.0166,1074.4,1073.1,2.02537545]
[1610345912511,2.0166,1074.4,1073.1,3.90597545]
[1610345912912,2.0166,1074.4,1074.3,4.00959]
[1610345913111,0.599,1074.4,1073.1,3.90597545]
[1610345913312,0.599,1074.4,1073.2,2.02588278]
[1610345913712,0.599,1074.4,1073.2,4.36498278]
[1610345914714,0.599,1074.4,1073.3,2.02677058]
[1610345914915,4.00959,1073.8,1073.5,4.00959]
[1610345915317,2.473,1074.1,1073.5,4.00959]
[1610345915516,2.473,1074.1,1073.3,2.02677058]
[1610345916116,2.473,1074.1,1073.6,2.02712085]
[1610345916917,4.00959,1073.7,1072.2,4.00959]
[1610345917117,6.30939,1073.7,1072.2,4.00959]
[1610345917718,6.30939,1073.7,1072.2,5.89669]
[1610345918120,8.19629,1073.7,1072.2,5.89669]
[1610345918518,2.2998,1073.7,1072.2,5.89669]
[1610345918720,2.2998,1073.7,1072.2,4.00959]
[1610345918920,2.473,1074.1,1073.6,4.00959]
[1610345919519,0.599,1074.4,1073.6,4.00959]
[1610345919720,1.27716,1085.4,1073.6,4.00959]
[1610345919920,30.0,1080.2,1073.6,4.00959]
[1610345920320,9.0,1079.2,1073.6,4.00959]
[1610345920721,15.0371,1079.6,1073.6,4.00959]
[1610345920921,4.00959,1073.9,1073.8,4.00959]
[1610345921126,5.65939,1073.9,1073.8,4.00959]
[1610345921321,5.65939,1073.9,1072.4,1.72350653]
[1610345921626,5.65939,1073.9,1072.3,1.7235768]
[1610345922026,5.65939,1073.9,1072.2,1.72392476]
[1610345922426,5.65939,1073.9,1072.0,1.87410505]
[1610345922625,5.65939,1073.9,1072.0,0.15]
[1610345922925,4.00959,1072.2,1072.0,4.15959]
[1610345923525,4.00959,1072.2,1072.0,0.15]
[1610345924328,4.00959,1072.2,1072.1,1.83259839]
[1610345925728,4.00959,1072.2,1072.0,0.15]
[1610345926530,1.5613,1072.7,1072.0,0.15]
[1610345926930,1.5613,1072.7,1072.6,4.00959]
[1610345927131,1.6498,1073.9,1072.6,4.00959]
[1610345927331,6.2038,1078.9,1072.6,6.46719]
[1610345928333,6.2038,1078.9,1072.7,1.93152291]
[1610345928535,15.2038,1078.9,1072.7,1.93152291]
[1610345928735,45.2038,1078.9,1072.7,1.93152291]
[1610345928935,4.00959,1072.8,1072.7,1.93152291]
[1610345929937,4.00959,1072.8,1072.4,1.93254181]
[1610345930336,6.33269,1072.8,1072.0,0.15]
[1610345930736,2.3231,1072.8,1072.0,0.15]
[1610345930936,2.3231,1072.8,1072.7,4.00959]
[1610345931938,2.3231,1072.8,1072.1,1.77928423]
[1610345933039,2.3231,1072.8,1072.7,4.00959]
[1610345934139,2.3231,1072.8,1072.7,5.7892237]
[1610345934740,2.4674,1073.1,1072.7,5.7892237]
[1610345934939,1.8723,1073.1,1072.7,5.7892237]
[1610345935140,80.2668,1073.4,1073.0,4.00959]
[1610345935339,0.92831,1077.2,1073.0,4.00959]
[1610345935340,6.2038,1078.9,1073.0,6.01719]
[1610345935741,1.8608,1077.0,1073.0,6.01719]
[1610345936340,1.8608,1077.0,1073.0,7.87509]
[1610345937144,4.00959,1075.0,1073.1,1.77704425]
[1610345937342,6.41999,1075.0,1073.1,1.77704425]
[1610345938544,6.41999,1075.0,1073.2,75.0461]
[1610345939143,4.00959,1073.4,1073.3,4.00959]
[1610345939342,1.9565,1073.5,1073.3,4.00959]
[1610345939745,2.4104,1075.0,1073.3,4.00959]
[1610345940143,2.4104,1075.0,1073.4,1.77769949]
[1610345942546,1.8499,1075.2,1073.4,1.77769949]
[1610345942745,1.851,1075.3,1073.4,1.77769949]
[1610345942946,63.6884,1075.5,1072.4,1.77952722]
[1610345943145,4.00959,1072.5,1072.4,1.77952722]
[1610345943346,6.36079,1072.5,1072.4,2.722e-05]
[1610345943746,6.36079,1072.5,1071.1,5.52599]
[1610345944347,6.36079,1072.5,1070.2,2.30169473]
[1610345944547,6.36079,1072.5,1070.2,1.852]
[1610345944746,6.36079,1072.5,1070.0,2.3020738]
[1610345944948,6.36079,1072.5,1069.9,2.30274561]
[1610345945147,6.36079,1072.5,1070.3,4.00959]
[1610345945148,4.00959,1070.5,1070.3,4.00959]
[1610345945350,1.7293,1071.8,1070.3,4.00959]
[1610345945548,1.7293,1071.8,1070.3,6.17349]
[1610345946349,1.7293,1071.8,1070.3,2.1639]
[1610345946749,1.7293,1071.8,1070.1,1.6164795]
[1610345947149,1.7293,1071.8,1070.5,4.00959]
[1610345947348,1.7293,1071.8,1070.4,1.43882557]
[1610345948348,3.6223,1071.8,1069.8,1.8471]
[1610345948548,3.6223,1071.8,1069.5,1.8878]
[1610345948948,61.2673,1070.9,1068.5,2.30550819]
[1610345949149,4.00959,1069.0,1068.5,2.30550819]
[1610345949350,4.00959,1069.0,1068.1,2.3055605]
[1610345949549,5.50899,1069.0,1068.1,2.3055605]
[1610345949751,5.50899,1069.0,1067.9,2.30648794]
[1610345949951,5.50899,1069.0,1068.6,1.44072011]
[1610345950153,1.4994,1069.0,1068.6,1.44072011]
[1610345950753,3.6119,1070.1,1068.6,1.44072011]
[1610345950952,1.7368,1070.1,1068.6,1.44072011]
[1610345951153,1.7368,1070.1,1068.6,3.32952011]
[1610345951352,1.7368,1070.1,1068.6,1.8888]
[1610345951752,1.7368,1070.1,1068.6,4.055]
[1610345951952,1.7368,1070.1,1068.6,2.1662]
[1610345952754,1.7368,1070.1,1068.7,1.44027775]
[1610345953153,1.7368,1070.1,1070.0,4.00959]
[1610345953353,61.2673,1070.9,1068.7,1.44027775]
[1610345954857,2.4282,1070.9,1068.7,1.44027775]
[1610345955057,4.00959,1070.9,1070.3,4.00959]
[1610345955259,1.89539,1070.9,1070.3,5.83639]
[1610345955457,2.428,1071.3,1070.3,5.83639]
[1610345955657,2.5,1449.0,1070.3,5.83639]
[1610345956260,79.6671,1071.8,1069.5,2.3575]
[1610345956461,81.9165,1071.8,1069.5,2.3575]
[1610345957162,4.00959,1070.2,1069.8,4.00959]
[1610345957362,4.00959,1070.2,1068.6,64.10167341]
[1610345957562,5.73779,1070.2,1068.6,61.7964]
[1610345958562,5.73779,1070.2,1068.7,1.44055247]
[1610345958962,5.73779,1070.2,1068.6,22.43005247]
[1610345959162,4.00959,1068.7,1067.6,6.31742634]
[1610345959362,4.00959,1068.7,1067.6,4.00959]
[1610345959363,5.91739,1068.7,1067.6,4.00959]
[1610345959763,5.91739,1068.7,1067.7,1.4415725]
[1610345961065,4.00959,1068.8,1068.5,4.00959]
[1610345961264,1.7282,1070.2,1067.7,1.4415725]
[1610345961465,1.7282,1070.2,1067.9,2.2785]
[1610345962465,1.7282,1070.2,1068.0,1.44085615]
[1610345962666,74.3262,1070.3,1068.0,1.44085615]
[1610345962868,74.3262,1070.3,1068.0,10.44085615]
[1610345963266,74.3262,1070.3,1070.2,4.00959]
[1610345963666,64.0241,1070.3,1070.2,4.00959]
[1610345963866,4.00959,1071.1,1070.2,4.00959]
[1610345964066,3.405,1075.3,1070.2,4.00959]
[1610345965269,72.779,1072.5,1071.5,4.00959]
[1610345965468,2.45222605,1075.2,1071.5,4.00959]
[1610345965667,4.30582605,1075.2,1071.5,4.00959]
[1610345966769,2.44889625,1075.1,1071.6,1.43826632]
[1610345967169,4.00959,1072.8,1071.6,1.43826632]
[1610345967370,6.18289,1072.8,1071.6,1.43826632]
[1610345968072,2.1733,1072.8,1071.6,1.43826632]
[1610345968271,2.1733,1072.8,1071.4,1.43833258]
[1610345969271,4.00959,1071.5,1071.4,1.43833258]
[1610345969672,4.00959,1071.5,1070.9,1.43947568]
[1610345970974,4.00959,1071.5,1070.1,1.4398728]
[1610345971175,4.00959,1070.8,1070.1,5.4494628]
[1610345971776,4.00959,1070.8,1070.1,1.4398728]
[1610345971975,5.91799,1070.8,1070.1,1.4398728]
[1610345972175,1.9084,1070.8,1070.1,1.4398728]
[1610345972376,1.9084,1070.8,1070.2,1.44015867]
[1610345973278,4.00959,1070.3,1070.2,1.44015867]
[1610345973479,5.79619,1070.3,1070.2,1.44015867]
[1610345973677,5.79619,1070.3,1068.8,1.44065308]
[1610345974677,1.7866,1070.3,1068.8,1.44065308]
[1610345974878,1.9084,1070.8,1068.8,1.44065308]
[1610345975076,2.2796,1071.1,1068.6,2.3772]
[1610345975277,5.94429,1071.6,1071.0,4.00959]
[1610345975477,1.9347,1071.6,1071.0,4.00959]
[1610345975678,6.2273,1081.3,1071.0,4.00959]
[1610345976080,160.4544,1073.2,1071.0,4.00959]
[1610345976277,4.2034,1073.2,1071.0,7.90049]
[1610345976478,4.2034,1073.2,1071.0,2.0139]
[1610345976878,4.2034,1073.2,1069.8,1.8598]
[1610345977079,4.2034,1073.2,1069.5,2.30403666]
[1610345977281,4.00959,1071.2,1070.8,4.00959]
[1610345977481,4.00959,1071.2,1069.1,2.30553786]
[1610345977783,4.00959,1071.2,1069.0,2.30548051]
[1610345977983,4.00959,1071.2,1069.6,1.43951984]
[1610345978184,1.5109,1071.3,1069.6,4.89711984]
[1610345978384,3.3609,1071.3,1069.6,4.89711984]
[1610345979183,1.8942,1071.8,1071.2,4.00959]
[1610345979985,1.8468,1072.2,1071.2,4.00959]
[1610345980185,1.8416,1072.5,1071.2,4.00959]
[1610345980787,0.96334,1076.0,1071.2,4.00959]
[1610345980988,14.0669,1075.1,1071.3,1.43876578]
[1610345981187,5.87749,1072.8,1072.4,4.00959]
[1610345981387,5.87749,1072.8,1071.3,1.43876578]
[1610345982387,5.87749,1072.8,1071.2,1.43844466]
[1610345982688,7.64099,1072.8,1071.2,1.43844466]
[1610345983288,4.00959,1071.3,1071.2,1.43844466]
[1610345983488,1.8708,1071.3,1071.2,1.43844466]
[1610345983888,1.8708,1071.3,1071.0,4.00959]
[1610345984091,1.8967,1071.5,1070.5,1.43942666]
[1610345984489,1.8599,1071.8,1070.5,1.43942666]
[1610345985290,4.00959,1071.2,1070.9,4.00959]
[1610345985793,4.00959,1071.2,1070.5,1.43942666]
[1610345987294,4.00959,1070.6,1070.5,2.666e-05]
[1610345987695,6.23019,1070.6,1069.3,2.1372]
[1610345987898,6.23019,1070.6,1067.7,3.4611468]
[1610345987899,6.23019,1070.6,1068.1,2.30762389]
[1610345988297,6.23019,1070.6,1067.8,2.30766107]
[1610345988495,8.08459,1070.6,1067.8,2.30766107]
[1610345988897,8.08459,1070.6,1067.5,2.30890152]
[1610345989297,4.00959,1068.0,1067.7,4.00959]
[1610345989496,4.00959,1068.0,1067.9,1.44197796]
[1610345990698,4.00959,1068.0,1067.9,0.01377796]
[1610345990900,4.00959,1068.0,1066.9,1.44245194]
[1610345991200,1.8948,1068.1,1067.9,4.00959]
[1610345991402,1.8948,1068.1,1067.2,4.0734]
[1610345991599,2.251,1068.4,1067.2,4.0734]
[1610345992007,2.2207,1069.1,1067.2,4.0734]
[1610345992208,2.2207,1069.1,1067.3,1.44220347]
[1610345992602,6.811,1074.6,1067.3,1.44220347]
[1610345992804,6.811,1074.6,1067.3,10.44220347]
[1610345993203,4.00959,1070.9,1069.7,4.00959]
[1610345995206,4.00959,1070.9,1070.1,4.00959]
[1610345995607,2.2206,1070.6,1070.1,4.00959]
[1610345997208,2.2206,1070.6,1070.4,4.00959]
[1610345998205,1.8954,1071.5,1070.4,4.00959]
[1610345998806,1.56413,1075.2,1070.4,4.00959]
[1610345999205,5.2484,1073.7,1071.9,4.00959]
[1610345999406,3.405,1073.7,1071.9,4.00959]
[1610345999605,5.2499,1073.7,1070.3,2.4107]
[1610345999806,7.1397,1073.7,1070.3,2.4107]
[1610346000407,7.1397,1073.7,1068.8,2.30736108]
[1610346000607,7.1397,1073.7,1068.6,2.3079321]
[1610346000808,5.74021821,1073.6,1068.6,2.3079321]
[1610346001008,5.74021821,1073.6,1069.2,1.8718]
[1610346001210,4.00959,1071.3,1071.1,4.00959]
[1610346001411,6.24199,1071.3,1071.1,4.00959]
[1610346001609,6.24199,1071.3,1068.9,1.8771]
[1610346001810,2.2324,1071.3,1068.9,1.8771]
[1610346002011,1.8518,1072.8,1068.9,1.8771]
[1610346002611,4.1381,1072.8,1068.9,1.8771]
[1610346002810,4.1381,1072.8,1068.7,2.30756996]
[1610346003011,4.1381,1072.8,1069.0,2.30709131]
[1610346003212,4.00959,1072.2,1071.8,4.00959]
[1610346003412,7.57109,1072.2,1071.8,4.00959]
[1610346003612,3.5615,1072.2,1071.8,4.00959]
[1610346003813,1.7214,1072.2,1071.8,4.00959]
[1610346004613,1.7214,1072.2,1070.2,1.8738]
[1610346005215,1.7214,1072.2,1070.9,65.1795]
[1610346005415,2.3526,1072.2,1072.1,4.00959]
[1610346005816,2.0693,1072.2,1072.1,4.00959]
[1610346006017,1.8393,1072.2,1072.1,4.00959]
[1610346007018,1.8393,1072.2,1070.9,65.1795]
[1610346007420,6.08279,1071.6,1071.1,4.00959]
[1610346007618,6.08279,1071.6,1070.9,65.1795]
[1610346008218,6.08279,1071.6,1069.8,75.0052]
[1610346009220,6.08279,1071.6,1068.4,1.73229658]
[1610346009420,5.87709,1069.9,1068.7,4.00959]
[1610346009621,5.87709,1069.9,1068.1,1.73249918]
[1610346010021,5.87709,1069.9,1067.7,1.73302939]
[1610346010422,5.87709,1069.9,1067.6,1.73331133]
[1610346010623,7.72679,1069.9,1067.5,75.757]
[1610346011025,7.72679,1069.9,1067.7,1.44266339]
[1610346011422,4.00959,1069.5,1067.7,1.44266339]
[1610346011623,5.61239,1069.5,1067.7,1.44266339]
[1610346012022,1.6028,1069.5,1067.7,1.44266339]
[1610346012424,1.6028,1069.5,1067.6,3.32880492]
[1610346013624,1.6028,1069.5,1067.6,5.06159208]
[1610346014025,1.6028,1069.5,1067.7,1.44233328]
[1610346014626,3.4529,1069.5,1067.7,1.44233328]
[1610346014825,1.6028,1069.5,1067.7,1.44233328]
[1610346016327,1.8675,1069.9,1067.7,1.44233328]
[1610346016526,1.8416,1070.8,1067.7,1.44233328]
[1610346016728,1.8416,1070.8,1067.7,10.44233328]
[1610346017127,187.49095,1075.5,1067.7,10.44233328]
[1610346017329,66.4121,1072.7,1071.0,4.00959]
[1610346017730,66.4121,1072.7,1068.8,1.8735]
[1610346019340,66.4121,1072.7,1070.4,4.00959]
[1610346019739,5.8101155,1072.6,1070.4,4.00959]
[1610346019942,7.9841155,1072.6,1070.4,4.00959]
[1610346021140,5.80945402,1072.5,1070.4,4.00959]
[1610346021341,4.00959,1071.6,1071.3,4.00959]
[1610346021541,7.65385402,1072.5,1071.3,4.00959]
[1610346021741,7.65385402,1072.5,1069.9,2.1414]
[1610346022240,5.80945402,1072.5,1069.9,3.9835]
[1610346022440,5.80945402,1072.5,1069.9,12.9835]
[1610346022642,2.174,1072.6,1069.9,12.9835]
[1610346023045,76.6518,1073.2,1069.9,12.9835]
[1610346023449,76.6518,1073.2,1073.0,4.00959]
[1610346025049,1.8634,1073.2,1073.0,4.00959]
[1610346025248,1.8406,1073.8,1073.0,4.00959]
[1610346025448,1.8406,1073.8,1073.7,4.00959]
[1610346025648,1.8878,1074.5,1073.7,4.00959]
[1610346025848,4.00959,1074.6,1073.7,4.00959]
[1610346026447,1.8744,1074.8,1073.7,4.00959]
[1610346027050,1.8402,1075.1,1073.7,4.00959]
[1610346027449,6.21349,1074.7,1072.8,1.857]
[1610346027649,8.06029,1074.7,1072.6,1.8541]
[1610346028051,2.2039,1074.7,1072.6,1.8541]
[1610346029049,4.0814,1074.7,1072.6,1.8541]
[1610346029249,2.2039,1074.7,1072.6,1.8541]
[1610346030451,2.2039,1074.7,1072.3,1.8762]
[1610346030650,2.2039,1074.7,1071.5,2.4851]
[1610346031450,4.00959,1074.4,1073.3,4.00959]
[1610346031650,7.81099,1074.4,1073.3,4.00959]
[1610346032653,7.81099,1074.4,1072.8,1.8381]
[1610346032853,7.81099,1074.4,1072.2,55.4743]
[1610346033453,6.26289,1073.4,1072.9,4.00959]
[1610346034854,6.26289,1073.4,1072.2,53.6262]
[1610346035053,2.2533,1073.4,1072.2,53.6262]
[1610346035553,2.2533,1073.4,1072.8,4.00959]
[1610346036356,1.9528,1074.4,1072.8,4.00959]
[1610346036556,2.2039,1074.7,1072.8,4.00959]
[1610346036757,5.7776,1075.8,1072.8,4.00959]
[1610346036958,52.9389,1075.9,1072.8,13.00959]
[1610346037359,5.8585,1077.0,1072.8,13.00959]
[1610346037559,5.82219,1075.4,1072.8,9.0]
[1610346037757,5.82219,1075.4,1072.6,1.8004]
[1610346038660,5.82219,1075.4,1072.6,10.8004]
[1610346039259,5.82219,1075.4,1072.6,1.8004]
[1610346039460,4.00959,1074.3,1073.4,4.00959]
[1610346039662,6.16859,1074.3,1073.4,4.00959]
[1610346039866,6.16859,1074.3,1072.1,1.7763]
[1610346040267,6.16859,1074.3,1071.3,1.7481]
[1610346041066,6.16859,1074.3,1072.2,1.43870858]
[1610346041268,6.16859,1074.3,1072.2,3.10580858]
[1610346041466,2.159,1074.3,1072.2,12.10580858]
[1610346042267,2.159,1074.3,1072.3,1.43790964]
[1610346042767,2.159,1074.3,1072.3,10.43790964]
[1610346043170,2.159,1074.3,1072.3,1.43790964]
[1610346043571,4.00959,1074.2,1073.6,4.00959]
[1610346043771,2.3218,1074.6,1073.6,4.00959]
[1610346045372,2.3218,1074.6,1074.5,4.00959]
[1610346046072,76.5691,1076.8,1074.5,4.00959]
[1610346047172,76.5691,1076.8,1074.5,5.85299]
[1610346047572,4.00959,1075.6,1074.5,1.8434]
[1610346047773,1.7302,1075.6,1074.5,1.8434]
[1610346049176,1.7302,1075.6,1073.8,1.8585]
[1610346049373,1.7302,1075.6,1072.9,2.30156431]
[1610346049573,1.7302,1075.6,1072.7,57.99565538]
[1610346049574,4.00959,1075.0,1072.8,2.30212662]
[1610346049775,5.84549,1075.0,1072.8,2.30212662]
[1610346049973,5.84549,1075.0,1072.5,2.30238056]
[1610346050174,5.84549,1075.0,1072.4,2.30336346]
[1610346050376,1.8359,1075.0,1073.2,75.9324]
[1610346050774,1.8359,1075.0,1073.2,84.9324]
[1610346051575,1.8359,1075.0,1074.9,4.00959]
[1610346052775,1.8359,1075.0,1074.9,5.89009]
[1610346053776,1.643,1075.0,1074.9,5.89009]
[1610346054177,1.643,1075.0,1074.9,4.00959]
[1610346054377,1.643,1075.0,1073.1,2.302036]
[1610346054577,1.643,1075.0,1072.7,2.30215985]
[1610346054777,1.643,1075.0,1072.5,1.873]
[1610346054977,1.7302,1075.6,1072.5,1.873]
[1610346055378,4.00959,1076.3,1072.5,1.873]
[1610346055579,4.00959,1074.0,1072.5,3.7266]
[1610346055778,6.14749,1074.0,1072.5,1.8782]
[1610346056378,6.14749,1074.0,1072.6,1.43915612]
[1610346057577,6.14749,1074.0,1072.6,5.44874612]
[1610346057578,4.00959,1073.0,1072.6,5.44874612]
[1610346057778,6.21249,1073.0,1072.6,4.00959]
[1610346058280,6.21249,1073.0,1071.0,1.8812]
[1610346059279,6.21249,1073.0,1071.3,1.44056525]
[1610346059480,4.00959,1072.7,1072.2,4.00959]
[1610346059680,1.9857,1072.7,1071.8,1.8539]
[1610346059880,1.9857,1072.7,1071.3,3.32136525]
[1610346060882,1.9857,1072.7,1071.4,1.44030189]
[1610346061482,1.9857,1072.7,1072.6,4.00959]
[1610346061683,0.6305,1072.7,1072.6,4.00959]
[1610346061883,0.6305,1072.7,1072.6,5.89949]
[1610346062083,2.1379,1074.0,1072.6,5.89949]
[1610346062283,61.4139,1074.4,1072.6,5.89949]
[1610346062887,1.871,1076.5,1072.7,65.3303]
[1610346063485,4.00959,1075.4,1074.6,4.00959]
[1610346063685,8.11499,1075.4,1072.8,1.8377]
[1610346063885,8.11499,1075.4,1072.7,65.3303]
[1610346064086,4.1054,1075.4,1072.7,74.3303]
[1610346064286,2.4095,1075.4,1072.7,74.3303]
[1610346064488,1.742,1075.4,1072.7,74.3303]
[1610346064887,67.33531793,1076.6,1072.7,76.6331542]
[1610346065088,1.7566,1075.4,1073.3,55.238]
[1610346065286,1.8422,1078.0,1073.3,2.1006]
[1610346065487,4.00959,1076.8,1076.5,4.00959]
[1610346065687,1.8422,1078.0,1076.5,4.00959]
[1610346065888,2.2374,1076.8,1073.8,2.3665]
[1610346066087,2.2374,1076.8,1073.8,11.3665]
[1610346066287,2.2374,1076.8,1073.8,2.3665]
[1610346066592,2.2374,1076.8,1073.8,4.223]
[1610346066992,2.2374,1076.8,1073.8,13.223]
[1610346067592,6.24699,1076.8,1076.4,4.00959]
[1610346067792,6.24699,1076.8,1074.5,1.8512]
[1610346068192,6.24699,1076.8,1074.5,10.8512]
[1610346068395,3.56249,1076.8,1074.5,10.8512]
[1610346068593,2.1518,1076.8,1074.5,10.8512]
[1610346068993,2.1518,1076.8,1074.6,1.43587588]
[1610346069193,2.1518,1076.8,1074.6,3.79077588]
[1610346069594,4.00959,1076.6,1074.6,3.79077588]
[1610346069994,4.00959,1076.6,1074.9,7.9541]
[1610346070194,4.00959,1076.6,1074.9,9.794]
[1610346070394,4.00959,1076.6,1074.9,7.9541]
[1610346071198,2.1518,1076.8,1074.9,7.9541]
[1610346071396,2.1518,1076.8,1074.9,9.8053]
[1610346071796,2.1518,1076.8,1076.4,4.00959]
[1610346073799,4.00959,1077.0,1076.7,4.00959]
[1610346074197,6.25629,1077.0,1076.7,4.00959]
[1610346074597,4.19609,1077.0,1076.7,4.00959]
[1610346075197,3.55629,1077.0,1076.7,4.00959]
[1610346075397,0.92329,1077.0,1076.7,4.00959]
[1610346075797,0.92329,1077.0,1076.9,4.00959]
[1610346076199,0.92329,1077.0,1075.8,1.8356]
[1610346076401,0.92329,1077.0,1075.5,1.8428]
[1610346077199,0.92329,1077.0,1075.3,1.5315]
[1610346077399,0.92329,1077.0,1074.5,1.8512]
[1610346077600,0.92329,1077.0,1074.1,2.3746]
[1610346077800,4.00959,1075.2,1074.6,4.00959]
[1610346078000,6.18699,1075.2,1074.6,4.00959]
[1610346078601,6.18699,1075.2,1072.9,2.30174358]
[1610346078802,6.18699,1075.2,1072.8,2.30220218]
[1610346079004,6.18699,1075.2,1072.9,9.0]
[1610346079203,6.18699,1075.2,1072.9,10.7316]
[1610346079402,6.18699,1075.2,1074.1,54.3924]
[1610346079603,2.1774,1075.2,1074.1,54.3924]
[1610346079803,2.1774,1075.2,1074.8,4.00959]
[1610346080204,0.92329,1077.0,1074.8,4.00959]
[1610346080404,6.3127,1077.6,1074.8,4.00959]
[1610346081606,3.69968363,1077.5,1074.8,4.00959]
[1610346081804,5.36388363,1077.5,1076.0,4.00959]
[1610346083107,3.69818794,1077.4,1076.0,4.00959]
[1610346083709,3.69818794,1077.4,1074.5,2.3348]
[1610346083910,4.00959,1076.4,1074.5,2.3348]
[1610346084111,6.11349,1076.4,1074.5,2.3348]
[1610346084309,6.11349,1076.4,1074.1,54.3924]
[1610346084709,6.11349,1076.4,1074.6,1.4367888]
[1610346085909,4.00959,1074.7,1074.3,4.00959]
[1610346086110,6.07119,1074.7,1074.3,4.00959]
[1610346087113,2.1055,1074.7,1074.3,4.00959]
[1610346087914,2.1055,1074.7,1074.6,4.00959]
[1610346088117,2.1039,1076.4,1074.6,4.00959]